[Event "Late-Titled-Tuesday-Blitz-April-02-2024"]
[Site "Chess.com"]
[Date "2024.04.02"]
[Round "6"]
[White "dennisodessa"]
[Black "youngdinousaur"]
[Result "1-0"]
[WhiteElo "2558"]
[BlackElo "2229"]
[TimeControl "180+1"]
[EndTime "15:02:05 PDT"]
[Termination "dennisodessa won by resignation"]

1. d4 {[%clk 0:02:29.5]} 1... Nf6 {[%clk 0:02:51]} 2. c4 {[%clk 0:02:29.5]} 2...
e6 {[%clk 0:02:50]} 3. Nc3 {[%clk 0:02:30.1]} 3... d5 {[%clk 0:02:50.7]} 4. cxd5
{[%clk 0:02:29.2]} 4... exd5 {[%clk 0:02:51.3]} 5. Bg5 {[%clk 0:02:29.4]} 5...
Bb4 {[%clk 0:02:51.3]} 6. Qa4+ {[%clk 0:02:24.2]} 6... Nc6 {[%clk 0:02:51.3]} 7.
Nf3 {[%clk 0:02:24.4]} 7... O-O {[%clk 0:02:50]} 8. e3 {[%clk 0:02:25]} 8... Bf5
{[%clk 0:02:46.6]} 9. Bb5 {[%clk 0:02:21.4]} 9... a5 {[%clk 0:02:15.9]} 10. O-O
{[%clk 0:02:18.2]} 10... h6 {[%clk 0:02:13.5]} 11. Bxf6 {[%clk 0:02:17.8]} 11...
Qxf6 {[%clk 0:02:12.8]} 12. Nxd5 {[%clk 0:02:17.1]} 12... Qd6 {[%clk 0:02:13.1]}
13. Nxb4 {[%clk 0:02:05.1]} 13... Nxb4 {[%clk 0:02:07.7]} 14. Rac1 {[%clk
0:02:00.9]} 14... c6 {[%clk 0:02:07.3]} 15. Be2 {[%clk 0:02:00.5]} 15... Be4
{[%clk 0:02:06.6]} 16. Nd2 {[%clk 0:01:56.5]} 16... Bd5 {[%clk 0:02:06.4]} 17.
a3 {[%clk 0:01:52]} 17... b5 {[%clk 0:01:49.7]} 18. Qd1 {[%clk 0:01:48.5]} 18...
Na6 {[%clk 0:01:49.8]} 19. Bf3 {[%clk 0:01:42.4]} 19... Rfc8 {[%clk 0:01:43.1]}
20. Ne4 {[%clk 0:01:39.1]} 20... Qg6 {[%clk 0:01:37]} 21. Nc5 {[%clk 0:01:38.4]}
21... Bxf3 {[%clk 0:01:05.2]} 22. Qxf3 {[%clk 0:01:39.3]} 22... b4 {[%clk
0:01:05.2]} 23. a4 {[%clk 0:01:30.4]} 23... Nc7 {[%clk 0:00:58.4]} 24. Qe4
{[%clk 0:01:21.4]} 24... Qf6 {[%clk 0:00:51.3]} 25. Nd7 {[%clk 0:01:18.6]} 25...
Qd6 {[%clk 0:00:45.6]} 26. Qxc6 {[%clk 0:01:17.3]} 1-0

[Event "Late-Titled-Tuesday-Blitz-April-02-2024"]
[Site "Chess.com"]
[Date "2024.04.02"]
[Round "6"]
[White "The_Straightforward_Rook"]
[Black "protectiago"]
[Result "1-0"]
[WhiteElo "2365"]
[BlackElo "2064"]
[TimeControl "180+1"]
[EndTime "15:02:05 PDT"]
[Termination "The_Straightforward_Rook won by resignation"]

1. e4 {[%clk 0:02:54.6]} 1... e5 {[%clk 0:02:58.9]} 2. Nf3 {[%clk 0:02:53.7]}
2... Nc6 {[%clk 0:02:58.4]} 3. Bc4 {[%clk 0:02:54.2]} 3... Bc5 {[%clk
0:02:57.4]} 4. d3 {[%clk 0:02:51.4]} 4... Nf6 {[%clk 0:02:56.1]} 5. Bg5 {[%clk
0:02:51.6]} 5... d6 {[%clk 0:02:46.6]} 6. c3 {[%clk 0:02:50]} 6... Bb6 {[%clk
0:02:44.4]} 7. Nbd2 {[%clk 0:02:47.9]} 7... Be6 {[%clk 0:02:40.7]} 8. b4 {[%clk
0:02:45.7]} 8... a6 {[%clk 0:02:39.4]} 9. a4 {[%clk 0:02:45.3]} 9... h6 {[%clk
0:02:21.7]} 10. Bh4 {[%clk 0:02:44.4]} 10... g5 {[%clk 0:02:18.3]} 11. Bg3
{[%clk 0:02:44.6]} 11... Rg8 {[%clk 0:01:25.6]} 12. Qb3 {[%clk 0:02:41.9]} 12...
Qd7 {[%clk 0:01:15.7]} 13. O-O {[%clk 0:02:41.2]} 13... h5 {[%clk 0:01:13.6]}
14. h4 {[%clk 0:02:38.3]} 14... gxh4 {[%clk 0:00:57.4]} 15. Bxh4 {[%clk
0:02:39.2]} 15... Ng4 {[%clk 0:00:48.5]} 16. Bxe6 {[%clk 0:02:29.7]} 16... fxe6
{[%clk 0:00:45.9]} 17. Nc4 {[%clk 0:02:28]} 17... Ba7 {[%clk 0:00:42.7]} 18. b5
{[%clk 0:02:27.3]} 18... Ne7 {[%clk 0:00:32.7]} 19. b6 {[%clk 0:02:03.4]} 19...
cxb6 {[%clk 0:00:24.3]} 20. Nxb6 {[%clk 0:02:04.3]} 20... Qc7 {[%clk 0:00:20]}
21. Nxa8 {[%clk 0:02:01.8]} 21... Qb8 {[%clk 0:00:16.7]} 22. Qxe6 {[%clk
0:02:00.7]} 22... Rg7 {[%clk 0:00:13.5]} 23. Bxe7 {[%clk 0:01:52.3]} 23... Rxe7
{[%clk 0:00:12.5]} 24. Qg8+ {[%clk 0:01:52.3]} 24... Kd7 {[%clk 0:00:12.8]} 25.
Qxb8 {[%clk 0:01:52.3]} 25... Bxb8 {[%clk 0:00:12.7]} 26. Nb6+ {[%clk
0:01:53.2]} 26... Kc6 {[%clk 0:00:13.2]} 27. Nd5 {[%clk 0:01:53.5]} 27... Rg7
{[%clk 0:00:12.9]} 28. Rab1 {[%clk 0:01:51.2]} 28... Ba7 {[%clk 0:00:12.4]} 29.
d4 {[%clk 0:01:47.8]} 29... exd4 {[%clk 0:00:11.2]} 30. Nxd4+ {[%clk 0:01:47.7]}
30... Kd7 {[%clk 0:00:09.2]} 31. Rxb7+ {[%clk 0:01:44.8]} 1-0

[Event "Late-Titled-Tuesday-Blitz-April-02-2024"]
[Site "Chess.com"]
[Date "2024.04.02"]
[Round "6"]
[White "Blackwhite017"]
[Black "GoValya"]
[Result "0-1"]
[WhiteElo "2060"]
[BlackElo "2235"]
[TimeControl "180+1"]
[EndTime "15:02:06 PDT"]
[Termination "GoValya won by resignation"]

1. e4 {[%clk 0:02:59.8]} 1... e6 {[%clk 0:02:59.7]} 2. d3 {[%clk 0:02:59.3]}
2... d5 {[%clk 0:02:59.2]} 3. Nd2 {[%clk 0:03:00]} 3... Nf6 {[%clk 0:02:59.4]}
4. Ngf3 {[%clk 0:03:00.6]} 4... c5 {[%clk 0:02:55.8]} 5. g3 {[%clk 0:03:00.7]}
5... Nc6 {[%clk 0:02:55.7]} 6. Bg2 {[%clk 0:03:01.4]} 6... Be7 {[%clk
0:02:55.8]} 7. O-O {[%clk 0:03:02.1]} 7... O-O {[%clk 0:02:55.9]} 8. Qe2 {[%clk
0:03:01.3]} 8... d4 {[%clk 0:02:56]} 9. e5 {[%clk 0:02:57.1]} 9... Nd5 {[%clk
0:02:55.7]} 10. a4 {[%clk 0:02:52]} 10... Ncb4 {[%clk 0:02:46.8]} 11. Nc4 {[%clk
0:02:51.7]} 11... Bd7 {[%clk 0:02:41.7]} 12. h4 {[%clk 0:02:26.8]} 12... b5
{[%clk 0:02:25.4]} 13. axb5 {[%clk 0:02:22.4]} 13... Bxb5 {[%clk 0:02:26.3]} 14.
Bg5 {[%clk 0:02:17.9]} 14... h6 {[%clk 0:02:12.1]} 15. Bxe7 {[%clk 0:02:10.3]}
15... Qxe7 {[%clk 0:02:12.4]} 16. Nd6 {[%clk 0:02:10.2]} 16... a6 {[%clk
0:01:58.8]} 17. Rfc1 {[%clk 0:02:04]} 17... f6 {[%clk 0:01:51.3]} 18. c4 {[%clk
0:02:02.4]} 18... dxc3 {[%clk 0:01:49.5]} 19. bxc3 {[%clk 0:02:03.3]} 19... Nxd3
{[%clk 0:01:47.3]} 20. c4 {[%clk 0:01:59]} 20... Nxc1 {[%clk 0:01:47.4]} 21.
Rxc1 {[%clk 0:01:58.7]} 21... fxe5 {[%clk 0:01:41.3]} 22. Qxe5 {[%clk
0:01:55.5]} 22... Bc6 {[%clk 0:01:27]} 23. cxd5 {[%clk 0:01:53.8]} 23... Bxd5
{[%clk 0:01:27.9]} 24. Rxc5 {[%clk 0:01:52.9]} 24... Bxf3 {[%clk 0:01:22.8]} 25.
Bh3 {[%clk 0:01:41.5]} 25... Rab8 {[%clk 0:01:00.9]} 26. Bxe6+ {[%clk
0:01:22.5]} 26... Kh8 {[%clk 0:01:00.5]} 27. Nf7+ {[%clk 0:01:17.9]} 27... Qxf7
{[%clk 0:00:50.8]} 0-1

[Event "Late-Titled-Tuesday-Blitz-April-02-2024"]
[Site "Chess.com"]
[Date "2024.04.02"]
[Round "6"]
[White "AlexandreHouhou"]
[Black "ATM622"]
[Result "0-1"]
[WhiteElo "2358"]
[BlackElo "2525"]
[TimeControl "180+1"]
[EndTime "15:02:10 PDT"]
[Termination "ATM622 won by resignation"]

1. e4 {[%clk 0:03:00.9]} 1... c6 {[%clk 0:02:56.9]} 2. d4 {[%clk 0:03:00.7]}
2... d5 {[%clk 0:02:57.8]} 3. exd5 {[%clk 0:02:52.1]} 3... cxd5 {[%clk
0:02:58.7]} 4. c4 {[%clk 0:02:51.9]} 4... e6 {[%clk 0:02:58.4]} 5. Nc3 {[%clk
0:02:51.9]} 5... Nf6 {[%clk 0:02:57.8]} 6. cxd5 {[%clk 0:02:48.3]} 6... exd5
{[%clk 0:02:55.9]} 7. Bg5 {[%clk 0:02:48.3]} 7... Be7 {[%clk 0:02:54.8]} 8. Bd3
{[%clk 0:02:47]} 8... Nc6 {[%clk 0:02:54.5]} 9. Nge2 {[%clk 0:02:47.2]} 9... h6
{[%clk 0:02:52.9]} 10. Bh4 {[%clk 0:02:47.2]} 10... O-O {[%clk 0:02:52.1]} 11.
O-O {[%clk 0:02:47.3]} 11... Be6 {[%clk 0:02:49.9]} 12. Rc1 {[%clk 0:02:45.9]}
12... Rc8 {[%clk 0:02:49.4]} 13. Re1 {[%clk 0:02:42]} 13... Re8 {[%clk
0:02:47.3]} 14. Qb3 {[%clk 0:02:39.2]} 14... Na5 {[%clk 0:02:44]} 15. Qa4 {[%clk
0:02:33.5]} 15... a6 {[%clk 0:02:42.6]} 16. Nf4 {[%clk 0:02:28.9]} 16... Bd7
{[%clk 0:02:38.7]} 17. Qc2 {[%clk 0:02:16.4]} 17... g5 {[%clk 0:02:37.3]} 18.
Nfxd5 {[%clk 0:01:33.8]} 18... Nxd5 {[%clk 0:02:32.3]} 19. Bg3 {[%clk
0:01:33.5]} 19... Nxc3 {[%clk 0:02:29.1]} 20. bxc3 {[%clk 0:01:33.1]} 20... Bf6
{[%clk 0:02:26.6]} 21. h4 {[%clk 0:01:31.3]} 21... Rxe1+ {[%clk 0:02:20.4]} 22.
Rxe1 {[%clk 0:01:30.9]} 22... Bxd4 {[%clk 0:02:20.6]} 23. hxg5 {[%clk
0:01:14.4]} 23... Qxg5 {[%clk 0:02:19.8]} 24. Qe2 {[%clk 0:01:12.2]} 24... Qxg3
{[%clk 0:02:17.1]} 25. cxd4 {[%clk 0:01:11.6]} 25... Qf4 {[%clk 0:02:16.2]} 26.
Qh5 {[%clk 0:01:08.9]} 26... Nc4 {[%clk 0:02:13.3]} 27. Re4 {[%clk 0:01:01.2]}
27... Qg5 {[%clk 0:02:10]} 28. Qe2 {[%clk 0:00:46.6]} 28... Nd2 {[%clk
0:02:07.5]} 29. Re3 {[%clk 0:00:33.7]} 29... Rc1+ {[%clk 0:02:06.7]} 30. Kh2
{[%clk 0:00:29.9]} 30... Nf1+ {[%clk 0:01:59.8]} 31. Qxf1 {[%clk 0:00:28.2]}
31... Rxf1 {[%clk 0:01:59.8]} 32. Bxf1 {[%clk 0:00:29.1]} 32... Qh5+ {[%clk
0:01:48]} 33. Kg1 {[%clk 0:00:28.5]} 33... Qd1 {[%clk 0:01:46.3]} 34. Rd3 {[%clk
0:00:21.4]} 34... Qc1 {[%clk 0:01:44.7]} 35. Rg3+ {[%clk 0:00:14.6]} 35... Kf8
{[%clk 0:01:44.1]} 0-1

[Event "Late-Titled-Tuesday-Blitz-April-02-2024"]
[Site "Chess.com"]
[Date "2024.04.02"]
[Round "6"]
[White "Felix-Rose"]
[Black "PNEPaul"]
[Result "1-0"]
[WhiteElo "2321"]
[BlackElo "1973"]
[TimeControl "180+1"]
[EndTime "15:02:18 PDT"]
[Termination "Felix-Rose won on time"]

1. e4 {[%clk 0:02:59.7]} 1... e5 {[%clk 0:02:02.4]} 2. Nf3 {[%clk 0:02:55.3]}
2... Nc6 {[%clk 0:02:02.3]} 3. Bb5 {[%clk 0:02:55.2]} 3... f5 {[%clk 0:02:01.4]}
4. d3 {[%clk 0:02:52.8]} 4... Nf6 {[%clk 0:02:01.2]} 5. O-O {[%clk 0:02:48.2]}
5... Be7 {[%clk 0:02:01.2]} 6. exf5 {[%clk 0:02:39.3]} 6... O-O {[%clk
0:02:00.1]} 7. Bxc6 {[%clk 0:02:36.6]} 7... dxc6 {[%clk 0:01:59.8]} 8. Nxe5
{[%clk 0:02:36.4]} 8... Bxf5 {[%clk 0:01:58.4]} 9. Nc3 {[%clk 0:02:36.2]} 9...
Bd6 {[%clk 0:01:58.2]} 10. d4 {[%clk 0:02:25.2]} 10... c5 {[%clk 0:01:43.8]} 11.
Qf3 {[%clk 0:02:13.4]} 11... Bxc2 {[%clk 0:01:25.6]} 12. Nd5 {[%clk 0:01:45.8]}
12... cxd4 {[%clk 0:01:14.9]} 13. Nxf6+ {[%clk 0:01:39.9]} 13... Rxf6 {[%clk
0:01:13.8]} 14. Qd5+ {[%clk 0:01:38.2]} 14... Kh8 {[%clk 0:01:04.7]} 15. Nf7+
{[%clk 0:01:35.6]} 15... Rxf7 {[%clk 0:01:00.7]} 16. Qxf7 {[%clk 0:01:36.5]}
16... Qh4 {[%clk 0:00:36.5]} 17. g3 {[%clk 0:01:30.8]} 17... Qh3 {[%clk
0:00:36.3]} 18. Qf3 {[%clk 0:01:30.7]} 18... d3 {[%clk 0:00:27.8]} 19. Qxb7
{[%clk 0:01:21.1]} 19... Re8 {[%clk 0:00:17.8]} 20. Be3 {[%clk 0:01:17.9]} 1-0

[Event "Late-Titled-Tuesday-Blitz-April-02-2024"]
[Site "Chess.com"]
[Date "2024.04.02"]
[Round "6"]
[White "Jaka_Brilej"]
[Black "Yushko_Olga"]
[Result "1-0"]
[WhiteElo "2568"]
[BlackElo "2233"]
[TimeControl "180+1"]
[EndTime "15:02:19 PDT"]
[Termination "Jaka_Brilej won by resignation"]

1. e4 {[%clk 0:02:53.5]} 1... Nf6 {[%clk 0:02:59]} 2. e5 {[%clk 0:02:49.2]} 2...
Nd5 {[%clk 0:02:58.7]} 3. c4 {[%clk 0:02:49.4]} 3... Nb6 {[%clk 0:02:48.4]} 4.
d4 {[%clk 0:02:50]} 4... d6 {[%clk 0:02:48.4]} 5. exd6 {[%clk 0:02:50.9]} 5...
exd6 {[%clk 0:02:48.1]} 6. Nc3 {[%clk 0:02:47.3]} 6... Be7 {[%clk 0:02:46.9]} 7.
Be3 {[%clk 0:02:47.1]} 7... O-O {[%clk 0:02:46.6]} 8. Bd3 {[%clk 0:02:47.8]}
8... Re8 {[%clk 0:02:45.1]} 9. Nge2 {[%clk 0:02:48.3]} 9... Bg4 {[%clk
0:02:44.9]} 10. O-O {[%clk 0:02:47.5]} 10... Nc6 {[%clk 0:02:43.7]} 11. b3
{[%clk 0:02:44.8]} 11... d5 {[%clk 0:02:42]} 12. c5 {[%clk 0:02:42.7]} 12... Nc8
{[%clk 0:02:41.7]} 13. h3 {[%clk 0:02:40.5]} 13... Bh5 {[%clk 0:02:40.7]} 14.
Qd2 {[%clk 0:02:40.9]} 14... Bf6 {[%clk 0:02:35.9]} 15. Nf4 {[%clk 0:02:38.5]}
15... Bg6 {[%clk 0:02:29]} 16. Bxg6 {[%clk 0:02:32.1]} 16... hxg6 {[%clk
0:02:25]} 17. Nfxd5 {[%clk 0:02:32.4]} 17... N8e7 {[%clk 0:02:11.9]} 18. Nxf6+
{[%clk 0:02:32]} 18... gxf6 {[%clk 0:02:12.8]} 19. d5 {[%clk 0:02:32.5]} 19...
Ne5 {[%clk 0:02:12.2]} 20. f4 {[%clk 0:02:31.8]} 20... Nd7 {[%clk 0:02:11.7]}
21. Rfe1 {[%clk 0:02:18.8]} 21... Nf5 {[%clk 0:02:09.6]} 22. Bf2 {[%clk
0:02:18.9]} 22... Nf8 {[%clk 0:02:05.1]} 23. Rxe8 {[%clk 0:02:10]} 23... Qxe8
{[%clk 0:02:04.8]} 24. Re1 {[%clk 0:02:10.9]} 24... Qd7 {[%clk 0:02:04.7]} 25.
Ne4 {[%clk 0:02:11.4]} 25... Kg7 {[%clk 0:01:58]} 26. Nxf6 {[%clk 0:02:09.2]}
26... Qd8 {[%clk 0:01:38.5]} 27. Re8 {[%clk 0:01:57.4]} 27... Qxf6 {[%clk
0:01:33.7]} 28. Rxa8 {[%clk 0:01:56.4]} 28... b6 {[%clk 0:00:53.9]} 29. Rxa7
{[%clk 0:01:51.9]} 29... bxc5 {[%clk 0:00:47.8]} 30. Bxc5 {[%clk 0:01:51.9]}
30... Nd7 {[%clk 0:00:40.2]} 31. Rxc7 {[%clk 0:01:50]} 31... Nxc5 {[%clk
0:00:29.9]} 32. Rxc5 {[%clk 0:01:50.9]} 32... Nd6 {[%clk 0:00:28.6]} 33. Qc3
{[%clk 0:01:50.2]} 33... Ne4 {[%clk 0:00:25.7]} 34. Qxf6+ {[%clk 0:01:49.6]}
34... Kxf6 {[%clk 0:00:26.6]} 35. Rc7 {[%clk 0:01:46.3]} 35... Nd6 {[%clk
0:00:23.3]} 36. a4 {[%clk 0:01:45.8]} 36... Ne8 {[%clk 0:00:22.4]} 37. Rc6+
{[%clk 0:01:45]} 37... Ke7 {[%clk 0:00:22]} 38. a5 {[%clk 0:01:45.5]} 1-0

[Event "Late-Titled-Tuesday-Blitz-April-02-2024"]
[Site "Chess.com"]
[Date "2024.04.02"]
[Round "6"]
[White "Meri-Arabidze"]
[Black "ViIIagra"]
[Result "0-1"]
[WhiteElo "2704"]
[BlackElo "2904"]
[TimeControl "180+1"]
[EndTime "15:02:24 PDT"]
[Termination "ViIIagra won by resignation"]

1. Nf3 {[%clk 0:03:00.9]} 1... d6 {[%clk 0:02:54.7]} 2. c4 {[%clk 0:02:59.6]}
2... e5 {[%clk 0:02:54.3]} 3. g3 {[%clk 0:03:00]} 3... f5 {[%clk 0:02:54.1]} 4.
Bg2 {[%clk 0:03:00]} 4... Nf6 {[%clk 0:02:54.7]} 5. O-O {[%clk 0:03:00.2]} 5...
Be7 {[%clk 0:02:54.7]} 6. b4 {[%clk 0:02:56.7]} 6... e4 {[%clk 0:02:50.6]} 7.
Nd4 {[%clk 0:02:55.9]} 7... c5 {[%clk 0:02:41.9]} 8. Nc2 {[%clk 0:02:55.9]} 8...
Nc6 {[%clk 0:02:41]} 9. a3 {[%clk 0:02:52.2]} 9... O-O {[%clk 0:02:39.2]} 10.
Bb2 {[%clk 0:02:51.7]} 10... Qe8 {[%clk 0:01:46.5]} 11. d3 {[%clk 0:02:41.3]}
11... Qg6 {[%clk 0:01:46.1]} 12. Nc3 {[%clk 0:02:37.1]} 12... Ne5 {[%clk
0:01:37.3]} 13. Nb5 {[%clk 0:02:34.5]} 13... exd3 {[%clk 0:01:32.3]} 14. exd3
{[%clk 0:02:32.8]} 14... f4 {[%clk 0:01:32.9]} 15. d4 {[%clk 0:01:58.3]} 15...
f3 {[%clk 0:01:18.7]} 16. Bh1 {[%clk 0:01:52.9]} 16... Nfg4 {[%clk 0:01:07.6]}
17. Re1 {[%clk 0:00:21.9]} 17... Qh5 {[%clk 0:01:05.4]} 18. h4 {[%clk
0:00:22.1]} 18... Bxh4 {[%clk 0:01:05]} 19. Rxe5 {[%clk 0:00:21.9]} 19... dxe5
{[%clk 0:01:01]} 20. Bxf3 {[%clk 0:00:19.4]} 20... Bxg3 {[%clk 0:01:01.3]} 0-1

[Event "Late-Titled-Tuesday-Blitz-April-02-2024"]
[Site "Chess.com"]
[Date "2024.04.02"]
[Round "6"]
[White "Balla_Tamas"]
[Black "SaqoChess_Twitch"]
[Result "1-0"]
[WhiteElo "2514"]
[BlackElo "2656"]
[TimeControl "180+1"]
[EndTime "15:02:24 PDT"]
[Termination "Balla_Tamas won by checkmate"]

1. Nf3 {[%clk 0:03:00.9]} 1... d5 {[%clk 0:03:00.3]} 2. b3 {[%clk 0:03:01.2]}
2... e6 {[%clk 0:03:00.8]} 3. Bb2 {[%clk 0:03:01.8]} 3... Nf6 {[%clk 0:03:01.4]}
4. e3 {[%clk 0:03:02.2]} 4... Be7 {[%clk 0:03:02]} 5. c4 {[%clk 0:03:02.5]} 5...
O-O {[%clk 0:03:02.3]} 6. Nc3 {[%clk 0:03:02.9]} 6... c5 {[%clk 0:03:02.2]} 7.
cxd5 {[%clk 0:02:49.2]} 7... exd5 {[%clk 0:03:00.3]} 8. d4 {[%clk 0:02:47.6]}
8... Nc6 {[%clk 0:02:59.7]} 9. dxc5 {[%clk 0:02:46.8]} 9... Bxc5 {[%clk
0:03:00]} 10. Be2 {[%clk 0:02:47.4]} 10... Be6 {[%clk 0:02:59.9]} 11. O-O {[%clk
0:02:46.8]} 11... h6 {[%clk 0:02:58.2]} 12. Rc1 {[%clk 0:02:44.7]} 12... Qe7
{[%clk 0:02:56.3]} 13. Qc2 {[%clk 0:02:38]} 13... Rac8 {[%clk 0:02:55.2]} 14.
Nxd5 {[%clk 0:02:31.6]} 14... Nxd5 {[%clk 0:02:46.1]} 15. Qxc5 {[%clk
0:02:31.6]} 15... Qxc5 {[%clk 0:02:39]} 16. Rxc5 {[%clk 0:02:32.5]} 16... b6
{[%clk 0:02:39.5]} 17. Rcc1 {[%clk 0:02:29.6]} 17... Ncb4 {[%clk 0:02:38.9]} 18.
a3 {[%clk 0:02:27]} 18... Na2 {[%clk 0:02:23.3]} 19. Rxc8 {[%clk 0:02:24.8]}
19... Rxc8 {[%clk 0:02:23.1]} 20. Bc4 {[%clk 0:02:25.2]} 20... Nac3 {[%clk
0:02:07]} 21. Nd4 {[%clk 0:02:18.2]} 21... Ne4 {[%clk 0:01:49.9]} 22. Nxe6
{[%clk 0:02:16.1]} 22... fxe6 {[%clk 0:01:49.2]} 23. Rd1 {[%clk 0:02:15.2]}
23... b5 {[%clk 0:01:31.1]} 24. Bd3 {[%clk 0:02:06.1]} 24... Nc5 {[%clk
0:01:18.5]} 25. Bxb5 {[%clk 0:01:49.1]} 25... Nxb3 {[%clk 0:01:16.7]} 26. Bd7
{[%clk 0:01:49.4]} 26... Rc2 {[%clk 0:01:09]} 27. Bxe6+ {[%clk 0:01:49]} 27...
Kf8 {[%clk 0:01:04.6]} 28. Be5 {[%clk 0:01:40.1]} 28... Nc3 {[%clk 0:00:33.6]}
29. Bxb3 {[%clk 0:01:33.9]} 29... Ra2 {[%clk 0:00:33.9]} 30. Bxa2 {[%clk
0:01:33.2]} 30... Nxd1 {[%clk 0:00:33.8]} 31. Bb3 {[%clk 0:01:33.3]} 31... g5
{[%clk 0:00:34.1]} 32. Bxd1 {[%clk 0:01:33.3]} 32... Kf7 {[%clk 0:00:35]} 33.
Bg3 {[%clk 0:01:31.9]} 33... a5 {[%clk 0:00:35.9]} 34. h4 {[%clk 0:01:32.4]}
34... Kg6 {[%clk 0:00:36]} 35. hxg5 {[%clk 0:01:32.7]} 35... hxg5 {[%clk
0:00:36.2]} 36. Bc2+ {[%clk 0:01:33]} 36... Kh5 {[%clk 0:00:36.1]} 37. e4 {[%clk
0:01:32.5]} 37... a4 {[%clk 0:00:36.3]} 38. e5 {[%clk 0:01:31.6]} 38... g4
{[%clk 0:00:35.4]} 39. e6 {[%clk 0:01:31.4]} 39... Kg5 {[%clk 0:00:35]} 40. e7
{[%clk 0:01:30.3]} 40... Kh6 {[%clk 0:00:34.6]} 41. e8=Q {[%clk 0:01:29.2]}
41... Kg5 {[%clk 0:00:35.5]} 42. Qg6# {[%clk 0:01:29.1]} 1-0

[Event "Late-Titled-Tuesday-Blitz-April-02-2024"]
[Site "Chess.com"]
[Date "2024.04.02"]
[Round "6"]
[White "WCM-Mexicana"]
[Black "nabukatnezarr"]
[Result "0-1"]
[WhiteElo "2426"]
[BlackElo "2627"]
[TimeControl "180+1"]
[EndTime "15:02:35 PDT"]
[Termination "nabukatnezarr won by resignation"]

1. d4 {[%clk 0:02:52]} 1... Nf6 {[%clk 0:02:59.4]} 2. Bf4 {[%clk 0:02:50]} 2...
e6 {[%clk 0:02:54.9]} 3. e3 {[%clk 0:02:47.9]} 3... b6 {[%clk 0:02:54.6]} 4. Qf3
{[%clk 0:02:47.7]} 4... c6 {[%clk 0:02:44.8]} 5. Nc3 {[%clk 0:02:47.3]} 5... d5
{[%clk 0:02:39]} 6. Bd3 {[%clk 0:02:45.2]} 6... Bd6 {[%clk 0:02:38]} 7. Nge2
{[%clk 0:02:43.8]} 7... Ba6 {[%clk 0:02:30.6]} 8. Bxa6 {[%clk 0:02:31.4]} 8...
Nxa6 {[%clk 0:02:31.5]} 9. g4 {[%clk 0:02:30.8]} 9... Qe7 {[%clk 0:02:20]} 10.
h4 {[%clk 0:02:20]} 10... e5 {[%clk 0:02:10.5]} 11. dxe5 {[%clk 0:02:11.7]}
11... Bxe5 {[%clk 0:02:11.4]} 12. O-O-O {[%clk 0:01:49.4]} 12... O-O {[%clk
0:02:00.1]} 13. Bxe5 {[%clk 0:01:14.4]} 13... Qxe5 {[%clk 0:02:01]} 14. g5
{[%clk 0:01:15.1]} 14... Ne4 {[%clk 0:01:42.4]} 15. h5 {[%clk 0:01:15.4]} 15...
Nac5 {[%clk 0:01:36.4]} 16. Nxe4 {[%clk 0:01:08.3]} 16... Nxe4 {[%clk
0:01:34.1]} 17. Nf4 {[%clk 0:01:06.7]} 17... Nxg5 {[%clk 0:01:28.3]} 18. Qg2
{[%clk 0:01:01.8]} 18... h6 {[%clk 0:01:27.4]} 19. Rdg1 {[%clk 0:00:59.4]} 19...
Kh8 {[%clk 0:01:25.1]} 20. Nd3 {[%clk 0:00:59.6]} 20... Qe4 {[%clk 0:01:23.7]}
21. Qg3 {[%clk 0:00:51.8]} 21... Rg8 {[%clk 0:01:12.4]} 22. Rh4 {[%clk
0:00:51.6]} 22... Qf3 {[%clk 0:01:07.7]} 23. Qd6 {[%clk 0:00:46.8]} 23... Qf6
{[%clk 0:01:04.8]} 24. Qc7 {[%clk 0:00:38.8]} 24... Rgc8 {[%clk 0:00:50.9]} 25.
Qg3 {[%clk 0:00:29.9]} 25... Nf3 {[%clk 0:00:46.8]} 26. Rf4 {[%clk 0:00:28.6]}
26... Nxg1 {[%clk 0:00:46.8]} 27. Rxf6 {[%clk 0:00:28.6]} 27... Ne2+ {[%clk
0:00:46.8]} 28. Kd2 {[%clk 0:00:28.8]} 28... Nxg3 {[%clk 0:00:47.4]} 29. Rxf7
{[%clk 0:00:29.5]} 29... Ne4+ {[%clk 0:00:47.7]} 0-1

[Event "Late-Titled-Tuesday-Blitz-April-02-2024"]
[Site "Chess.com"]
[Date "2024.04.02"]
[Round "6"]
[White "prochn"]
[Black "Cluke86"]
[Result "1/2-1/2"]
[WhiteElo "2508"]
[BlackElo "2335"]
[TimeControl "180+1"]
[EndTime "15:02:35 PDT"]
[Termination "Game drawn by repetition"]

1. d4 {[%clk 0:03:00.9]} 1... d6 {[%clk 0:02:59.5]} 2. Nf3 {[%clk 0:02:59.6]}
2... Nf6 {[%clk 0:02:59.5]} 3. g3 {[%clk 0:02:59.2]} 3... g6 {[%clk 0:02:59.9]}
4. Bg2 {[%clk 0:02:59.5]} 4... Bg7 {[%clk 0:03:00.4]} 5. O-O {[%clk 0:02:58.9]}
5... O-O {[%clk 0:03:00.4]} 6. c4 {[%clk 0:02:59.5]} 6... c5 {[%clk 0:02:57.6]}
7. d5 {[%clk 0:02:59.2]} 7... b5 {[%clk 0:02:52]} 8. cxb5 {[%clk 0:02:59]} 8...
a6 {[%clk 0:02:52.6]} 9. bxa6 {[%clk 0:02:57.2]} 9... Bxa6 {[%clk 0:02:51.6]}
10. Nc3 {[%clk 0:02:56.2]} 10... Nbd7 {[%clk 0:02:47.8]} 11. Rb1 {[%clk
0:02:53.4]} 11... Ng4 {[%clk 0:02:45.3]} 12. Qc2 {[%clk 0:02:44.6]} 12... Nge5
{[%clk 0:02:23.4]} 13. Nxe5 {[%clk 0:02:40.9]} 13... Nxe5 {[%clk 0:02:23.4]} 14.
b3 {[%clk 0:02:40.2]} 14... Qa5 {[%clk 0:02:18.4]} 15. Bd2 {[%clk 0:02:32.1]}
15... Rfc8 {[%clk 0:02:12.9]} 16. a4 {[%clk 0:02:29.7]} 16... Qb6 {[%clk
0:02:06.6]} 17. h3 {[%clk 0:02:20.3]} 17... Rab8 {[%clk 0:01:48.2]} 18. Kh2
{[%clk 0:02:19]} 18... e6 {[%clk 0:01:45.4]} 19. f4 {[%clk 0:02:06.9]} 19... Nd7
{[%clk 0:01:44.5]} 20. e4 {[%clk 0:02:00.9]} 20... Bxf1 {[%clk 0:01:32]} 21.
Bxf1 {[%clk 0:02:01.2]} 21... Qb4 {[%clk 0:01:24.7]} 22. dxe6 {[%clk 0:01:58.6]}
22... fxe6 {[%clk 0:01:24]} 23. Bc4 {[%clk 0:01:58.1]} 23... Kf7 {[%clk
0:01:17.8]} 24. Nb5 {[%clk 0:01:53.3]} 24... Rxb5 {[%clk 0:01:04.1]} 25. axb5
{[%clk 0:01:37.5]} 25... Qa3 {[%clk 0:00:59.9]} 26. f5 {[%clk 0:01:37.4]} 26...
gxf5 {[%clk 0:00:56.9]} 27. exf5 {[%clk 0:01:37.7]} 27... Ne5 {[%clk 0:00:50.3]}
28. Bxe6+ {[%clk 0:01:36.9]} 28... Kf8 {[%clk 0:00:47.8]} 29. Bxc8 {[%clk
0:01:33.2]} 29... c4 {[%clk 0:00:44.1]} 30. b6 {[%clk 0:01:26.3]} 30... Qc5
{[%clk 0:00:41.7]} 31. b7 {[%clk 0:01:23.4]} 31... Qf2+ {[%clk 0:00:41.3]} 32.
Kh1 {[%clk 0:01:21.8]} 32... Qf3+ {[%clk 0:00:39.7]} 33. Kg1 {[%clk 0:01:16.7]}
33... Qxg3+ {[%clk 0:00:39.7]} 34. Kf1 {[%clk 0:01:16.9]} 34... Qf3+ {[%clk
0:00:35.5]} 35. Ke1 {[%clk 0:01:16.8]} 35... Qh1+ {[%clk 0:00:33.4]} 36. Ke2
{[%clk 0:01:16.5]} 36... Qf3+ {[%clk 0:00:32.4]} 37. Ke1 {[%clk 0:01:17]} 37...
Qh1+ {[%clk 0:00:32.3]} 38. Kf2 {[%clk 0:01:15.7]} 38... Qf3+ {[%clk 0:00:26.9]}
39. Ke1 {[%clk 0:01:15.8]} 1/2-1/2